fUSD/lending_fUSD_20260116
["ID","MTS","AMOUNT","RATE_DAILY","PERIOD"]
[402200920,1768592884072,-150.0,0.00013425,2]
[402200921,1768592884100,-84.69378492,0.00013426,2]
[402200922,1768592885615,-25.06845725,0.00013426,2]
[402200923,1768592885643,-232.04671777,0.00013426,2]
[402200924,1768592887165,-267.95328223,0.00013426,2]
[402200925,1768592887195,-57.01407777,0.00013426,2]
[402200926,1768592890468,-249.46925352,0.00013426,2]
[402200927,1768592895266,-193.51666871,0.00013426,2]
[402200928,1768592895297,-139.97067337,0.00013426,2]
[402200929,1768592896728,-159.98381343,0.00013426,2]
[402200930,1768592898310,-170.52600367,0.00013425,2]
[402200931,1768592900419,-183.56049534,0.00013425,2]
[402200932,1768592904738,-293.30879909,0.00013425,2]
[402200933,1768592906326,-221.1910972,0.00013425,2]
[402200934,1768592908960,-313.19091314,0.00013425,2]
[402200935,1768592912643,-18.22269156,0.00013425,2]
[402200936,1768592912672,-200.0455132,0.00013426,2]
[402200937,1768592912700,-175.74463723,0.00013426,2]
[402200938,1768592917682,-319.91859461,0.00013426,2]
[402200939,1768592919310,-4.33676816,0.00013426,2]
[402200940,1768592919341,-244.27365434,0.00013426,2]
[402200941,1768592922472,-255.72634566,0.00013426,2]
[402200942,1768592922499,-5.92789257,0.00013426,2]
[402200943,1768592924714,-160.74125026,0.00013426,2]
[402200945,1768592926279,-250.0,0.00013426,2]
[402200946,1768592928427,-83.33085717,0.00013426,2]
[402200947,1768592928457,-88.65172467,0.00013426,2]
[402200948,1768592930726,-157.01150717,0.00013426,2]
[402200949,1768592931915,-254.33676816,0.00013426,2]
[402200950,1768592931948,-500.0,0.00013426,2]
[402200951,1768592931983,-500.0,0.00013426,2]
[402200952,1768592932017,-300.0,0.00013426,2]
[402200953,1768592932051,-500.0,0.00013426,2]
[402200954,1768592932223,-5891.33646368,0.00013427,2]
[402200955,1768592934114,-178.67630316,0.00013427,2]
[402200956,1768592934980,-10000.01,0.00013427,2]
[402200957,1768592937121,-297.04663651,0.00013427,2]
[402200958,1768592939762,-155.95336349,0.00013427,2]
[402200959,1768592941301,-10000.01,0.00013427,2]
[402200960,1768592942946,-176.3260472,0.00013426,2]
[402200961,1768592944353,-123.6739528,0.00013426,2]
[402200962,1768592944377,-229.06329939,0.00013427,2]
[402200963,1768592948119,-10000.01,0.00013427,2]
[402200964,1768592948554,-10000.01,0.00013427,2]
[402200965,1768592948617,-374.67708398,0.00013427,2]
[402200966,1768592948791,-10000.01,0.00013427,2]
[402200967,1768592948906,-10000.01,0.00013427,2]
[402200968,1768592949066,-10000.01,0.00013427,2]
[402200969,1768592950160,-226.66580017,0.00013427,2]
[402200970,1768592951874,-10000.01,0.00013427,2]
[402200971,1768592951889,-10000.01,0.00013427,2]
[402200972,1768592954794,-10000.01,0.00013427,2]
[402200973,1768592954919,-10000.01,0.00013427,2]
[402200974,1768592954961,-300.0,0.00013427,2]
[402200975,1768592955022,-10000.01,0.00013427,2]
[402200976,1768592955183,-10000.01,0.00013427,2]
[402200977,1768592957624,-362.61526,0.00013427,2]
[402200978,1768592959763,-273.52,0.00013427,2]
[402200979,1768592961284,-170.65569331,0.00013427,2]
[402200980,1768592963337,-372.11586974,0.00013427,2]
[402200981,1768592966904,-290.71747328,0.00013381,2]
[402200982,1768592969480,-223.35608799,0.00013381,2]
[402200983,1768592969502,-93.49762185,0.00013427,2]
[402200984,1768592974689,-537.19894017,0.00013427,2]
[402200985,1768592977008,-211.81856156,0.00013427,2]
[402200986,1768592977092,-450.7254268,0.00013417,2]
[402200987,1768592977104,-9549.2845732,0.00013427,2]
[402200988,1768592979313,-264.80182353,0.00013427,2]
[402200989,1768592982982,-275.0,0.00013427,2]
[402200990,1768592984132,-10000.01,0.00013427,2]
[402200991,1768592989517,-161.80446071,0.00013427,2]
[402200992,1768592991607,502.5148194,0.00030136,120]
[402200993,1768592991638,-272.70300979,0.00013427,2]
[402200994,1768592994384,-213.1185493,0.00013427,2]
[402200995,1768592997426,-579.56529285,0.00013427,2]
[402200996,1768592998966,-1111.90678517,0.00013427,2]
[402200997,1768593001396,-198.43470715,0.00013427,2]
[402200998,1768593002928,-182.57215667,0.00013426,2]
[402201000,1768593031576,-152.14592756,0.00013381,2]
[402201001,1768593031587,-1017.42784333,0.00013426,2]
[402201002,1768593031597,-260.0,0.00013426,2]
[402201003,1768593031608,-300.0,0.00013427,2]
[402201004,1768593031617,-649.36910503,0.00013427,2]
[402201005,1768593031627,-517.72346677,0.00013427,2]
[402201006,1768593031636,-1352.76045704,0.00013427,2]
[402201007,1768593031646,-629.9009953,0.00013427,2]
[402201008,1768593031656,-6019.97041892,0.00013427,2]
[402201009,1768593031674,-18341.1777839,0.00013427,2]
[402201010,1768593031688,-48671.52977544,0.00013427,2]
[402201011,1768593031701,-4035.05288234,0.00013427,2]
[402201012,1768593031716,-4031.53528395,0.00013427,2]
[402201013,1768593031737,-8980.70455397,0.00013427,2]
[402201014,1768593031750,-804.0,0.00013427,2]
[402201015,1768593031770,-300.0,0.00013427,2]
[402201016,1768593031800,-3713.59999994,0.00013427,2]
[402201017,1768593031812,-22622.16729201,0.00013427,2]
[402201018,1768593031822,-185.66149566,0.00013452,2]
[402201019,1768593031831,-150.0,0.00013481,2]
[402201020,1768593031840,-216.18,0.00013481,2]
[402201022,1768593031849,-8537.60430648,0.00013499,2]
[402201023,1768593031858,-306.21893552,0.00013699,2]
[402201025,1768593031868,-8537.60430639,0.00013988,2]
[402201026,1768593031877,-242.21679347,0.00014125,2]
[402201027,1768593031885,-905.2275782,0.00014134,2]
[402201028,1768593031895,-341.0058,0.00014135,2]
[402201029,1768593031905,-174.06,0.00014212,2]
[402201031,1768593031913,-32661.30195397,0.00014222,2]
[402201068,1768593037785,-1146.58616103,0.00013709,2]
[402201069,1768593037838,-2093.41383897,0.00013709,2]
[402201070,1768593037848,-1260.94099928,0.00014222,2]
[402201071,1768593037860,-22560.15860279,0.00014222,2]
[402201072,1768593037873,-52321.62875937,0.00014222,2]
[402201081,1768593039771,-11819.20088292,0.00014222,2]
[402201082,1768593039783,-9697.57715935,0.00014222,2]
[402201083,1768593039795,-3063.35789132,0.00014222,2]
[402201084,1768593039807,-769404.025051,0.00014222,2]
[402201085,1768593039817,-2111.4101,0.00014234,2]
[402201086,1768593039827,-23188.29904283,0.00014235,2]
[402201087,1768593039838,-2500.0,0.00014235,2]
[402201088,1768593039848,-150.0,0.00014261,2]
[402201089,1768593039857,-500.0,0.00014261,2]
[402201090,1768593039867,-429.0,0.00014261,2]
[402201091,1768593039877,-150.0,0.00014261,2]
[402201092,1768593039887,-500.0,0.00014261,2]
[402201093,1768593039896,-500.0,0.00014261,2]
[402201094,1768593039905,-250.0,0.00014261,2]
[402201095,1768593039915,-467.0,0.00014261,2]
[402201096,1768593039924,-500.0,0.00014261,2]
[402201097,1768593039934,-500.0,0.00014261,2]
[402201098,1768593039944,-500.0,0.00014261,2]
[402201099,1768593039955,-500.0,0.00014261,2]
[402201100,1768593039966,-150.0,0.00014316,2]
[402201101,1768593039976,-500.0,0.00014316,2]
[402201102,1768593039985,-429.0,0.00014316,2]
[402201103,1768593039997,-150.0,0.00014316,2]
[402201104,1768593040006,-500.0,0.00014316,2]
[402201105,1768593040016,-500.0,0.00014316,2]
[402201106,1768593040027,-467.0,0.00014316,2]
[402201107,1768593040036,-501.25650865,0.00014316,2]
[402201108,1768593040051,-500.0,0.00014316,2]
[402201109,1768593040060,-500.0,0.00014316,2]
[402201110,1768593040071,-500.0,0.00014316,2]
[402201111,1768593040081,-96590.27339972,0.00014323,2]
[402201112,1768593040091,-850.21314504,0.00014324,2]
[402201113,1768593040101,-552.12,0.00014326,2]
[402201114,1768593040110,-151.0,0.00014326,2]
[402201115,1768593040121,-151.0,0.00014326,2]
[402201116,1768593040131,-151.0,0.00014326,2]
[402201117,1768593040141,-151.0,0.00014326,2]
[402201118,1768593040151,-151.0,0.00014326,2]
[402201119,1768593040160,-151.0,0.00014326,2]
[402201120,1768593040170,-151.0,0.00014326,2]
[402201121,1768593040180,-151.0,0.00014326,2]
[402201122,1768593040191,-151.0,0.00014326,2]
[402201123,1768593040201,-161.29469845,0.00014326,2]
[402201124,1768593040210,-500.0,0.00014326,2]
[402201125,1768593040221,-500.0,0.00014333,2]
[402201126,1768593040230,-28261.80444716,0.00014334,2]
[402201127,1768593040240,-150.0,0.00014334,2]
[402201129,1768593040250,-150.0,0.00014334,2]
[402201131,1768593040259,-179.0,0.00014334,2]
[402201132,1768593040269,-150.0,0.00014334,2]
[402201133,1768593040279,-170.0,0.00014334,2]
[402201134,1768593040288,-407.31203624,0.00014334,2]
[402201135,1768593040298,-500.0,0.00014334,2]
[402201136,1768593040307,-500.0,0.00014334,2]
[402201137,1768593040317,-287.7530172,0.00014334,2]
[402201138,1768593040327,-500.0,0.00014334,2]
[402201139,1768593040337,-500.0,0.00014334,2]
[402201140,1768593040347,-500.0,0.00014334,2]
[402201141,1768593040356,-500.0,0.00014334,2]
[402201142,1768593040366,-500.0,0.00014334,2]
[402201143,1768593040375,-500.0,0.00014334,2]
[402201144,1768593040385,-500.0,0.00014334,2]
[402201145,1768593040394,-500.0,0.00014334,2]
[402201146,1768593040403,-506.16656929,0.00014334,2]
[402201147,1768593040413,-500.0,0.00014334,2]
[402201148,1768593040423,-604.54147957,0.00014334,2]
[402201149,1768593040433,-500.0,0.00014334,2]
[402201150,1768593040444,-500.0,0.00014334,2]
[402201151,1768593040453,-500.0,0.00014334,2]
[402201152,1768593040463,-500.0,0.00014334,2]
[402201153,1768593040473,-500.0,0.00014334,2]
[402201154,1768593040482,-500.0,0.00014334,2]
[402201155,1768593040491,-500.0,0.00014334,2]
[402201156,1768593040501,-1000.0,0.00014335,2]
[402201157,1768593040510,-200.0,0.00014335,2]
[402201158,1768593040519,-202.62137386,0.00014371,2]
[402201159,1768593040529,-500.0,0.00014371,2]
[402201160,1768593040538,-429.0,0.00014371,2]
[402201161,1768593040547,-500.0,0.00014371,2]
[402201162,1768593040558,-500.0,0.00014371,2]
[402201163,1768593040568,-467.0,0.00014371,2]
[402201164,1768593040577,-500.0,0.00014371,2]
[402201165,1768593040587,-500.0,0.00014371,2]
[402201166,1768593040598,-500.0,0.00014371,2]
[402201167,1768593040608,-500.0,0.00014425,2]
[402201168,1768593040617,-429.0,0.00014425,2]
[402201169,1768593040627,-500.0,0.00014425,2]
[402201170,1768593040636,-500.0,0.00014425,2]
[402201171,1768593040645,-467.0,0.00014425,2]
[402201172,1768593040654,-500.0,0.00014425,2]
[402201173,1768593040664,-500.0,0.00014425,2]
[402201174,1768593040674,-500.0,0.00014425,2]
[402201175,1768593040683,-500.0,0.00014434,2]
[402201176,1768593040692,-500.0,0.00014434,2]
[402201177,1768593040706,-458.62181078,0.00014434,2]
[402201178,1768593040718,-500.0,0.00014434,2]
[402201179,1768593040728,-187.55807195,0.00014434,2]
[402201180,1768593040737,-3339.01,0.00014472,2]
[402201181,1768593040746,-8537.60430639,0.00014477,2]
[402201182,1768593040756,-200.0,0.00014478,2]
[402201183,1768593040765,-500.0,0.0001448,2]
[402201184,1768593040774,-429.0,0.0001448,2]
[402201185,1768593040784,-500.0,0.0001448,2]
[402201186,1768593040793,-467.0,0.0001448,2]
[402201187,1768593040803,-500.0,0.0001448,2]
[402201188,1768593040812,-287.6507494,0.0001448,2]
[402201189,1768593040822,-579.63385986,0.0001448,2]
[402201190,1768593040832,-166.66,0.00014531,2]
[402201191,1768593040841,-500.0,0.00014535,2]
[402201192,1768593040850,-429.0,0.00014535,2]
[402201193,1768593040859,-500.0,0.00014535,2]
[402201194,1768593040868,-467.0,0.00014535,2]
[402201195,1768593040877,-500.0,0.00014535,2]
[402201196,1768593040887,-255.0,0.0001454,2]
[402201197,1768593040897,-500.0,0.00014544,2]
[402201198,1768593040907,-500.0,0.00014544,2]
[402201199,1768593040917,-500.0,0.00014544,2]
[402201200,1768593040926,-500.0,0.00014544,2]
[402201201,1768593040935,-500.0,0.00014544,2]
[402201202,1768593040945,-500.0,0.00014544,2]
[402201203,1768593040958,-500.0,0.00014544,2]
[402201204,1768593040968,-500.0,0.00014544,2]
[402201205,1768593040977,-500.0,0.0001459,2]
[402201206,1768593040987,-429.0,0.0001459,2]
[402201207,1768593041000,-500.0,0.0001459,2]
[402201208,1768593041010,-467.0,0.0001459,2]
[402201209,1768593041019,-500.0,0.0001459,2]
[402201210,1768593041030,-552.12,0.000146,2]
[402201211,1768593041040,-500.0,0.00014607,2]
[402201212,1768593041049,-200.0,0.00014623,2]
[402201213,1768593041059,-166.68,0.00014624,2]
[402201214,1768593041068,-500.0,0.00014645,2]
[402201215,1768593041077,-429.0,0.00014645,2]
[402201216,1768593041086,-500.0,0.00014645,2]
[402201217,1768593041095,-467.0,0.00014645,2]
[402201218,1768593041105,-500.0,0.00014645,2]
[402201219,1768593041114,-905.22757819,0.00014672,2]
[402201220,1768593041124,-500.0,0.00014699,2]
[402201221,1768593041134,-429.0,0.00014699,2]
[402201222,1768593041144,-500.0,0.00014699,2]
[402201223,1768593041153,-467.0,0.00014699,2]
[402201224,1768593041162,-500.0,0.00014699,2]
[402201225,1768593041171,-482.0,0.00014717,2]
[402201226,1768593041181,-500.0,0.00014754,2]
[402201227,1768593041190,-429.0,0.00014754,2]
[402201228,1768593041202,-500.0,0.00014754,2]
[402201229,1768593041211,-467.0,0.00014754,2]
[402201230,1768593041220,-500.0,0.00014754,2]
[402201231,1768593041230,-418.50928406,0.00014769,2]
[402201232,1768593041239,-195.0,0.00014769,2]
[402201233,1768593041249,-300.0,0.00014769,2]
[402201234,1768593041258,-2500.0,0.00014769,2]
[402201235,1768593041267,-2500.0,0.00014769,2]
[402201236,1768593041278,-1607.55417689,0.00014769,2]
[402201237,1768593041288,-332.31826611,0.00014769,2]
[402201238,1768593041298,-275.27861321,0.00014769,2]
[402201239,1768593041308,-2500.0,0.00014769,2]
[402201240,1768593041318,-200.0,0.00014769,2]
[402201241,1768593041328,-1680.0,0.00014769,2]
[402201242,1768593041338,-250.0,0.0001477,2]
[402201243,1768593041349,-2500.0,0.0001477,2]
[402201244,1768593041358,-311.88068045,0.00014809,2]
[402201245,1768593041367,-429.0,0.00014809,2]
[402201246,1768593041377,-500.0,0.00014809,2]
[402201247,1768593041387,-467.0,0.00014809,2]
[402201248,1768593041397,-500.0,0.00014809,2]
[402201249,1768593041407,-326.0252322,0.00014846,2]
[402201250,1768593041416,-429.0,0.00014864,2]
[402201251,1768593041426,-328.02149145,0.00014864,2]
[402201252,1768593041436,-467.0,0.00014864,2]
[402201253,1768593041446,-500.0,0.00014864,2]
[402201254,1768593041455,-552.12,0.00014874,2]
[402201255,1768593041464,-500.0,0.00014874,2]
[402201256,1768593041474,-3339.01,0.00014898,2]
[402201257,1768593041483,-200.0,0.000149,2]
[402201258,1768593041493,-200.0,0.00014917,2]
[402201259,1768593041502,-429.0,0.00014919,2]
[402201260,1768593041511,-467.0,0.00014919,2]
[402201261,1768593041521,-500.0,0.00014919,2]
[402201262,1768593041531,-8537.60430639,0.00014966,2]
[402201263,1768593041540,-429.0,0.00014973,2]
[402201264,1768593041550,-467.0,0.00014973,2]
[402201265,1768593041560,-500.0,0.00014973,2]
[402201266,1768593041570,-166.66,0.00014995,2]
[402201267,1768593041589,-356.35,0.00014997,2]
[402201268,1768593041600,-200.0,0.00015,2]
[402201269,1768593041610,-429.0,0.00015028,2]
[402201270,1768593041619,-467.0,0.00015028,2]
[402201271,1768593041630,-463.11024684,0.00015028,2]
[402201272,1768593041640,-200.0,0.00015049,2]
[402201273,1768593041652,-12252.81,0.00015057,2]
[402201274,1768593041662,-16415.02,0.00015057,2]
[402201275,1768593041672,-153.41,0.00015057,2]
[402201276,1768593041681,-39511.06,0.00015057,2]
[402201277,1768593041692,-500.0,0.00015057,2]
[402201278,1768593041702,-11478.65,0.00015057,2]
[402201279,1768593041711,-46637.94,0.00015057,2]
[402201280,1768593041721,-429.0,0.00015083,2]
[402201281,1768593041730,-467.0,0.00015083,2]
[402201282,1768593041740,-429.0,0.00015138,2]
[402201283,1768593041749,-467.0,0.00015138,2]
[402201284,1768593041760,-1500.0,0.00015147,2]
[402201285,1768593041769,-552.12,0.00015148,2]
[402201286,1768593041779,-200.0,0.0001515,2]
[402201287,1768593041788,-429.0,0.00015193,2]
[402201288,1768593041798,-467.0,0.00015193,2]
[402201289,1768593041807,-200.0,0.00015199,2]
[402201290,1768593041817,-905.22757819,0.0001521,2]
[402201291,1768593041826,-429.0,0.00015247,2]
[402201292,1768593041835,-467.0,0.00015247,2]
[402201293,1768593041845,-151.0,0.00015266,2]
[402201294,1768593041854,-200.0,0.00015301,2]
[402201295,1768593041864,-429.0,0.00015302,2]
[402201296,1768593041874,-467.0,0.00015302,2]
[402201297,1768593041884,-3339.01,0.00015323,2]
[402201298,1768593041895,-200.0,0.00015351,2]
[402201299,1768593041905,-429.0,0.00015357,2]
[402201300,1768593041916,-467.0,0.00015357,2]
[402201301,1768593041926,-433.17,0.000154,2]
[402201302,1768593041938,-429.0,0.00015412,2]
[402201303,1768593041954,-467.0,0.00015412,2]
[402201304,1768593041964,-620.0,0.00015416,2]
[402201305,1768593041974,-174.61919141,0.00015416,2]
[402201306,1768593041984,-574.12855637,0.00015416,2]
[402201307,1768593041994,-250.0,0.00015416,2]
[402201308,1768593042004,-250.0,0.00015416,2]
[402201309,1768593042014,-250.0,0.00015416,2]
[402201310,1768593042025,-250.0,0.00015416,2]
[402201311,1768593042036,-322.6107,0.00015416,2]
[402201312,1768593042046,-250.0,0.00015416,2]
[402201313,1768593042056,-250.0,0.00015416,2]
[402201314,1768593042067,-250.0,0.00015416,2]
[402201315,1768593042078,-250.0,0.00015416,2]
[402201316,1768593042088,-250.0,0.00015416,2]
[402201317,1768593042098,-240.60543737,0.00015416,2]
[402201318,1768593042107,-3000.0,0.00015416,2]
[402201319,1768593042120,-1239.0,0.00015416,2]
[402201320,1768593042131,-552.12,0.00015422,2]
[402201321,1768593042141,-500.0,0.00015422,2]
[402201322,1768593042150,-200.0,0.00015455,2]
[402201323,1768593042160,-8537.60430639,0.00015455,2]
[402201324,1768593042169,-326.0252322,0.00015457,2]
[402201325,1768593042179,-166.66,0.0001546,2]
[402201326,1768593042189,-429.0,0.00015466,2]
[402201327,1768593042199,-467.0,0.00015466,2]
[402201328,1768593042208,-200.0,0.00015505,2]
[402201329,1768593042218,-435.2469951,0.00015521,2]
[402201330,1768593042227,-485.05041082,0.00015521,2]
[402201331,1768593042237,-200.0,0.00015609,2]
[402201332,1768593042246,-500.0,0.00015632,2]
[402201333,1768593042256,-500.0,0.00015632,2]
[402201334,1768593042266,-500.0,0.00015632,2]
[402201335,1768593042276,-501.14381708,0.00015632,2]
[402201336,1768593042286,-500.0,0.00015632,2]
[402201337,1768593042295,-500.0,0.00015632,2]
[402201338,1768593042305,-580.7623026,0.00015632,2]
[402201339,1768593042315,-250.0,0.00015657,2]
[402201340,1768593042327,-195.0,0.00015657,2]
[402201341,1768593042337,-3489.6436252,0.0001573,2]
[402201342,1768593042347,-433.0,0.00015748,2]
[402201343,1768593042356,-905.22757819,0.00015748,2]
[402201344,1768593042366,-3339.01,0.00015749,2]
[402201345,1768593042376,-500.0,0.00015767,2]
[402201346,1768593042386,-500.0,0.00015767,2]
[402201347,1768593042395,-500.0,0.00015767,2]
[402201348,1768593042406,-490.42703734,0.00015773,2]
[402201349,1768593042416,-500.0,0.00015773,2]
[402201350,1768593042426,-742.2319994,0.00015856,2]
[402201351,1768593042436,-166.66,0.00015924,2]
[402201352,1768593042445,-8537.60430639,0.00015944,2]
[402201353,1768593042454,-181.08010149,0.00015964,2]
[402201354,1768593042464,-595.37131296,0.00015964,2]
[402201355,1768593042473,-545.96462305,0.0001597,2]
[402201356,1768593042483,-500.0,0.00015999,2]
[402201357,1768593042492,-500.0,0.00015999,2]
[402201358,1768593042503,-200.863269,0.00016,2]
[402201359,1768593042512,-2000.0,0.00016032,2]
[402201360,1768593042522,-294.172,0.00016032,2]
[402201361,1768593042532,-778.6447409,0.0001605,2]
[402201362,1768593042542,-326.0252322,0.00016068,2]
[402201363,1768593042551,-3339.01,0.00016175,2]
[402201364,1768593042561,-500.0,0.00016199,2]
[402201365,1768593042570,-165.6143448,0.0001624,2]
[402201366,1768593042580,-2351.0,0.00016246,2]
[402201367,1768593042589,-500.0,0.00016247,2]
[402201368,1768593042599,-905.22757819,0.00016286,2]
[402201369,1768593042609,-498.47647708,0.00016288,7]
[402201370,1768593042618,-1000.0,0.00016321,2]
[402201371,1768593042628,-166.66,0.00016388,2]
[402201372,1768593042637,-8537.60430639,0.00016433,2]
[402201373,1768593042647,-500.0,0.00016437,2]
[402201374,1768593042656,-500.0,0.00016438,2]
[402201375,1768593042666,-500.0,0.00016438,2]
[402201376,1768593042675,-500.0,0.00016438,2]
[402201377,1768593042685,-248.74688754,0.00016438,2]
[402201378,1768593042694,-500.0,0.00016438,2]
[402201379,1768593042703,-500.0,0.00016438,2]
[402201380,1768593042716,-500.0,0.00016438,2]
[402201381,1768593042726,-436.0,0.00016438,2]
[402201382,1768593042735,-165.04,0.0001644,2]
[402201383,1768593042746,-166.68,0.00016484,2]
[402201384,1768593042756,-356.35,0.00016487,2]
[402201385,1768593042766,-436.0,0.00016493,2]
[402201386,1768593042776,-187.78006525,0.00016512,2]
[402201387,1768593043048,-617.40005154,0.00016512,2]
[402201388,1768593043096,-436.0,0.00016548,2]
[402201390,1768593043106,-436.0,0.00016602,2]
[402201391,1768593043116,-436.0,0.00016657,2]
[402201393,1768593043125,-326.0252322,0.00016678,2]
[402201395,1768593043135,-436.0,0.00016712,2]
[402201396,1768593043144,-436.0,0.00016767,2]
[402201397,1768593043153,-500.0,0.00016767,2]
[402201400,1768593043163,-671.94308054,0.00016785,2]
[402201401,1768593043172,-334.5472959,0.00016785,2]
[402201403,1768593043181,-1239.0,0.00016785,2]
[402201406,1768593043191,-436.0,0.00016822,2]
[402201408,1768593043201,-905.22757819,0.00016824,2]
[402201409,1768593043210,-1500.0,0.00016868,2]
[402201410,1768593043220,-436.0,0.00016876,2]
[402201411,1768593043230,-8537.60430639,0.00016922,2]
[402201412,1768593043239,-436.0,0.00016931,2]
[402201414,1768593043248,-1733.2975304,0.00016932,2]
[402201416,1768593043257,-436.0,0.00016986,2]
[402201418,1768593043267,-250.0,0.00017,2]
[402201420,1768593043276,-436.0,0.00017041,2]
[402201421,1768593043285,-736.0,0.0001705,2]
[402201422,1768593043295,-194.72792766,0.0001706,2]
[402201423,1768593043304,-640.24385345,0.0001706,2]
[402201424,1768593043313,-436.0,0.00017096,2]
[402201425,1768593043325,-436.0,0.0001715,2]
[402201426,1768593043334,-5003.03273076,0.00017179,2]
[402201427,1768593043343,-5000.0,0.00017179,2]
[402201428,1768593043352,-5000.0,0.00017179,2]
[402201429,1768593043362,-5000.0,0.00017179,2]
[402201430,1768593043371,-5000.0,0.00017179,2]
[402201431,1768593043384,-166.68,0.00017201,2]
[402201432,1768593043393,-356.35,0.00017201,2]
[402201433,1768593043403,-436.0,0.00017205,2]
[402201434,1768593043412,-436.0,0.0001726,2]
[402201435,1768593043421,-326.0252322,0.00017289,2]
[402201436,1768593043430,-436.0,0.00017315,2]
[402201437,1768593043440,-1000.0,0.00017328,2]
[402201438,1768593043450,-1000.0,0.00017344,2]
[402201439,1768593043460,-905.22757819,0.00017362,2]
[402201440,1768593043469,-325.0,0.00017366,2]
[402201441,1768593043478,-436.0,0.0001737,2]
[402201442,1768593043488,-1000.0,0.00017377,2]
[402201443,1768593043497,-1000.0,0.00017378,2]
[402201444,1768593043506,-1000.0,0.00017391,2]
[402201445,1768593043516,-500.0,0.00017397,2]
[402201446,1768593043525,-150.0,0.00017398,3]
[402201447,1768593043534,-3800.0,0.000174,6]
[402201448,1768593043543,-8537.60430639,0.00017411,2]
[402201449,1768593043552,-2000.0,0.00017416,2]
[402201450,1768593043561,-1000.0,0.00017424,2]
[402201451,1768593043572,-436.0,0.00017424,2]
[402201452,1768593043581,-1000.0,0.00017429,2]
[402201453,1768593043591,-1000.0,0.00017429,2]
[402201454,1768593043600,-5154.42589326,0.00017433,2]
[402201455,1768593043609,-150.0,0.00017435,2]
[402201456,1768593043618,-1000.0,0.00017457,2]
[402201457,1768593043628,-1000.0,0.00017466,2]
[402201458,1768593043637,-436.0,0.00017479,2]
[402201459,1768593043646,-1000.0,0.00017484,2]
[402201460,1768593043655,-1000.0,0.00017494,2]
[402201461,1768593043664,-155.3440016,0.00017499,2]
[402201462,1768593043674,-2000.0,0.000175,2]
[402201463,1768593043683,-1000.0,0.000175,2]
[402201464,1768593043692,-1000.0,0.000175,2]
[402201465,1768593043702,-4800.0,0.000175,6]
[402201466,1768593043711,-1000.0,0.00017518,2]
[402201467,1768593043721,-150.0,0.00017531,2]
[402201468,1768593043730,-436.0,0.00017534,2]
[402201469,1768593043738,-1000.0,0.00017554,2]
[402201470,1768593043747,-150.0,0.00017555,2]
[402201471,1768593043757,-1000.0,0.00017555,2]
[402201472,1768593043766,-1000.0,0.00017561,2]
[402201473,1768593043775,-1000.0,0.00017567,2]
[402201474,1768593043784,-436.0,0.00017589,2]
[402201475,1768593043793,-900.0,0.000176,6]
[402201476,1768593043803,-1000.0,0.00017602,2]
[402201477,1768593043812,-172.74236897,0.00017608,2]
[402201478,1768593043822,-663.93287602,0.00017608,2]
[402201479,1768593043831,-1000.0,0.00017634,2]
[402201480,1768593043840,-1703.29631507,0.0001764,2]
[402201481,1768593043849,-436.0,0.00017643,2]
[402201482,1768593043858,-1000.0,0.00017661,2]
[402201483,1768593043867,-1000.0,0.00017689,2]